[Event "Titled Tuesday Blitz November 14 Late 2023"]
[White "Lopez Perdomo, Juan David"]
[Black "RodokininEV"]
[WhiteFideId "4405137"]
[WhiteElo "2137"]
[BlackElo "2539"]
[Result "1-0"]
[Round "1"]
[TimeControl "180+1"]
[Date "2023.11.14"]
[WhiteClock "0:01:06"]
[BlackClock "0:00:15"]
[Board "163"]

1. e4 {[%clk 0:02:56]}  c5 {[%clk 0:02:57]} 2. d4 {[%clk 0:02:56]}  cxd4 {[%clk 0:02:58]} 3. c3 {[%clk 0:02:57]}  dxc3 {[%clk 0:02:58]} 4. Nxc3 {[%clk 0:02:57]}  e6 {[%clk 0:02:58]} 5. Nf3 {[%clk 0:02:58]}  a6 {[%clk 0:02:59]} 6. Bc4 {[%clk 0:02:58]}  b5 {[%clk 0:02:59]} 7. Bb3 {[%clk 0:02:58]}  Bb7 {[%clk 0:02:59]} 8. O-O {[%clk 0:02:57]}  Nc6 {[%clk 0:02:58]} 9. Qe2 {[%clk 0:02:56]}  Na5 {[%clk 0:02:57]} 10. Bd5 {[%clk 0:02:36]}  Ne7 {[%clk 0:02:29]} 11. Bxb7 {[%clk 0:02:27]}  Nxb7 {[%clk 0:02:30]} 12. Bg5 {[%clk 0:02:26]}  f6 {[%clk 0:02:29]} 13. Bh4 {[%clk 0:02:26]}  Ng6 {[%clk 0:02:30]} 14. Bg3 {[%clk 0:02:27]}  Be7 {[%clk 0:02:29]} 15. Rfd1 {[%clk 0:02:23]}  O-O {[%clk 0:02:26]} 16. h4 {[%clk 0:02:23]}  Rc8 {[%clk 0:02:22]} 17. h5 {[%clk 0:02:23]}  Nh8 {[%clk 0:02:22]} 18. Rd2 {[%clk 0:01:43]}  Na5 {[%clk 0:02:01]} 19. Rad1 {[%clk 0:01:42]}  Nc4 {[%clk 0:01:28]} 20. Rxd7 {[%clk 0:01:41]}  Qe8 {[%clk 0:01:28]} 21. Rb7 {[%clk 0:01:17]}  Rd8 {[%clk 0:01:18]} 22. Rxd8 {[%clk 0:01:16]}  Qxd8 {[%clk 0:01:19]} 23. b3 {[%clk 0:01:17]}  Qc8 {[%clk 0:01:05]} 24. Rxe7 {[%clk 0:01:15]}  Nd6 {[%clk 0:00:59]} 25. Bxd6 {[%clk 0:01:14]}  Nf7 {[%clk 0:00:55]} 26. Rc7 {[%clk 0:01:12]}  Qd8 {[%clk 0:00:51]} 27. e5 {[%clk 0:01:04]}  fxe5 {[%clk 0:00:22]} 28. Bxe5 {[%clk 0:01:05]}  Nxe5 {[%clk 0:00:20]} 29. Qxe5 {[%clk 0:01:06]}  Rf5 {[%clk 0:00:15]} 30. Qxe6+ {[%clk 0:01:06]} 1-0


[Site "https://www.chess.com"]

[Event "Titled Tuesday Blitz November 14 Late 2023"]
[White "Leenhouts, Koen"]
[Black "Andreassen, Lars"]
[WhiteFideId "1008439"]
[BlackFideId "1504878"]
[WhiteElo "2538"]
[BlackElo "2136"]
[Result "1-0"]
[Round "1"]
[TimeControl "180+1"]
[Date "2023.11.14"]
[WhiteClock "0:00:13"]
[BlackClock "0:00:12"]
[Board "164"]

1. Nf3 {[%clk 0:02:59]}  d5 {[%clk 0:02:59]} 2. g3 {[%clk 0:02:58]}  Nf6 {[%clk 0:02:58]} 3. Bg2 {[%clk 0:02:58]}  g6 {[%clk 0:02:58]} 4. O-O {[%clk 0:02:58]}  Bg7 {[%clk 0:02:59]} 5. c4 {[%clk 0:02:57]}  c6 {[%clk 0:02:59]} 6. cxd5 {[%clk 0:02:53]}  cxd5 {[%clk 0:03:00]} 7. d4 {[%clk 0:02:53]}  O-O {[%clk 0:03:00]} 8. Nc3 {[%clk 0:02:51]}  Nc6 {[%clk 0:02:59]} 9. Bf4 {[%clk 0:02:50]}  e6 {[%clk 0:02:57]} 10. Ne5 {[%clk 0:02:40]}  Nxe5 {[%clk 0:02:53]} 11. Bxe5 {[%clk 0:02:15]}  Bd7 {[%clk 0:02:52]} 12. Rc1 {[%clk 0:02:07]}  Rc8 {[%clk 0:02:49]} 13. Qb3 {[%clk 0:01:51]}  Qb6 {[%clk 0:02:38]} 14. Qxb6 {[%clk 0:01:43]}  axb6 {[%clk 0:02:39]} 15. Rc2 {[%clk 0:01:38]}  Bc6 {[%clk 0:02:14]} 16. Rfc1 {[%clk 0:01:20]}  Ra8 {[%clk 0:02:14]} 17. a3 {[%clk 0:01:18]}  Ne4 {[%clk 0:02:04]} 18. Bxg7 {[%clk 0:01:13]}  Kxg7 {[%clk 0:02:05]} 19. Bxe4 {[%clk 0:01:12]}  dxe4 {[%clk 0:02:05]} 20. e3 {[%clk 0:01:11]}  f5 {[%clk 0:01:57]} 21. Ne2 {[%clk 0:01:00]}  Rf7 {[%clk 0:01:53]} 22. Nf4 {[%clk 0:00:58]}  Kf6 {[%clk 0:01:40]} 23. Rxc6 {[%clk 0:00:55]}  bxc6 {[%clk 0:01:40]} 24. Rxc6 {[%clk 0:00:56]}  Re8 {[%clk 0:01:25]} 25. d5 {[%clk 0:00:52]}  b5 {[%clk 0:01:16]} 26. dxe6 {[%clk 0:00:51]}  Rb7 {[%clk 0:01:11]} 27. h4 {[%clk 0:00:51]}  b4 {[%clk 0:01:07]} 28. axb4 {[%clk 0:00:48]}  Ke5 {[%clk 0:01:07]} 29. Rc5+ {[%clk 0:00:45]}  Kd6 {[%clk 0:01:04]} 30. Rd5+ {[%clk 0:00:45]}  Kc6 {[%clk 0:01:04]} 31. Rd4 {[%clk 0:00:38]}  Reb8 {[%clk 0:01:04]} 32. Rc4+ {[%clk 0:00:34]}  Kd6 {[%clk 0:01:02]} 33. Rd4+ {[%clk 0:00:34]}  Kc6 {[%clk 0:01:02]} 34. Nd5 {[%clk 0:00:24]}  Kd6 {[%clk 0:00:53]} 35. e7 {[%clk 0:00:22]}  Kd7 {[%clk 0:00:37]} 36. Kg2 {[%clk 0:00:19]}  h6 {[%clk 0:00:26]} 37. b5 {[%clk 0:00:17]}  Ke6 {[%clk 0:00:25]} 38. b6 {[%clk 0:00:16]}  Rd7 {[%clk 0:00:19]} 39. e8=Q+ {[%clk 0:00:14]}  Rxe8 {[%clk 0:00:18]} 40. Nc7+ {[%clk 0:00:14]}  Ke7 {[%clk 0:00:19]} 41. Nxe8 {[%clk 0:00:13]}  Kxe8 {[%clk 0:00:17]} 42. Rxd7 {[%clk 0:00:13]}  Kxd7 {[%clk 0:00:18]} 43. g4 {[%clk 0:00:13]}  fxg4 {[%clk 0:00:17]} 44. Kg3 {[%clk 0:00:12]}  h5 {[%clk 0:00:17]} 45. Kf4 {[%clk 0:00:12]}  Kc6 {[%clk 0:00:15]} 46. Kg5 {[%clk 0:00:13]}  Kxb6 {[%clk 0:00:14]} 47. Kxg6 {[%clk 0:00:13]}  g3 {[%clk 0:00:12]} 48. fxg3 {[%clk 0:00:13]} 1-0


[Site "https://www.chess.com"]

[Event "Titled Tuesday Blitz November 14 Late 2023"]
[White "Petersson, Kjell"]
[Black "Baches Garcia, Guillermo"]
[WhiteFideId "1705148"]
[BlackFideId "2209764"]
[WhiteElo "2134"]
[BlackElo "2535"]
[Result "1/2-1/2"]
[Round "1"]
[TimeControl "180+1"]
[Date "2023.11.14"]
[WhiteClock "0:02:15"]
[BlackClock "0:02:17"]
[Board "165"]

1. d4 {[%clk 0:03:00]}  d5 {[%clk 0:02:59]} 2. Bf4 {[%clk 0:03:01]}  e6 {[%clk 0:03:00]} 3. e3 {[%clk 0:03:01]}  Bd6 {[%clk 0:03:00]} 4. Nd2 {[%clk 0:03:00]}  Nf6 {[%clk 0:02:59]} 5. Ngf3 {[%clk 0:02:58]}  O-O {[%clk 0:02:59]} 6. Bd3 {[%clk 0:02:53]}  c5 {[%clk 0:02:58]} 7. c3 {[%clk 0:02:53]}  Qc7 {[%clk 0:02:58]} 8. Bxd6 {[%clk 0:02:51]}  Qxd6 {[%clk 0:02:58]} 9. Ne5 {[%clk 0:02:51]}  b6 {[%clk 0:02:46]} 10. f4 {[%clk 0:02:47]}  Bb7 {[%clk 0:02:46]} 11. Qf3 {[%clk 0:02:45]}  Nc6 {[%clk 0:02:37]} 12. g4 {[%clk 0:02:44]}  Ne7 {[%clk 0:02:32]} 13. h4 {[%clk 0:02:40]}  Ne4 {[%clk 0:02:25]} 14. Nxe4 {[%clk 0:02:38]}  dxe4 {[%clk 0:02:26]} 15. Bxe4 {[%clk 0:02:38]}  Bxe4 {[%clk 0:02:27]} 16. Qxe4 {[%clk 0:02:38]}  cxd4 {[%clk 0:02:22]} 17. exd4 {[%clk 0:02:32]}  f5 {[%clk 0:02:21]} 18. gxf5 {[%clk 0:02:15]}  exf5 {[%clk 0:02:17]} 1/2-1/2


[Site "https://www.chess.com"]

[Event "Titled Tuesday Blitz November 14 Late 2023"]
[White "topce"]
[Black "Jelcic, Marko"]
[BlackFideId "14406489"]
[WhiteElo "2532"]
[BlackElo "2134"]
[Result "1-0"]
[Round "1"]
[TimeControl "180+1"]
[Date "2023.11.14"]
[WhiteClock "0:01:43"]
[BlackClock "0:00:36"]
[Board "166"]

1. c4 {[%clk 0:03:00]}  c5 {[%clk 0:02:55]} 2. Nc3 {[%clk 0:03:00]}  Nc6 {[%clk 0:02:54]} 3. g3 {[%clk 0:02:57]}  e5 {[%clk 0:02:55]} 4. Bg2 {[%clk 0:02:58]}  g6 {[%clk 0:02:37]} 5. d3 {[%clk 0:02:52]}  Bg7 {[%clk 0:02:36]} 6. h4 {[%clk 0:02:52]}  h5 {[%clk 0:02:34]} 7. Bg5 {[%clk 0:02:51]}  Nge7 {[%clk 0:02:34]} 8. Bxe7 {[%clk 0:02:38]}  Nxe7 {[%clk 0:02:21]} 9. e3 {[%clk 0:02:39]}  d6 {[%clk 0:02:16]} 10. Nge2 {[%clk 0:02:40]}  Rb8 {[%clk 0:02:10]} 11. O-O {[%clk 0:02:40]}  Be6 {[%clk 0:02:09]} 12. b3 {[%clk 0:02:37]}  O-O {[%clk 0:02:08]} 13. Qd2 {[%clk 0:02:36]}  d5 {[%clk 0:02:06]} 14. cxd5 {[%clk 0:02:30]}  Nxd5 {[%clk 0:02:06]} 15. Nxd5 {[%clk 0:02:29]}  Bxd5 {[%clk 0:02:07]} 16. Bxd5 {[%clk 0:02:30]}  Qxd5 {[%clk 0:02:08]} 17. Nc3 {[%clk 0:02:30]}  Qd7 {[%clk 0:02:06]} 18. e4 {[%clk 0:02:30]}  f5 {[%clk 0:01:59]} 19. Rad1 {[%clk 0:02:27]}  f4 {[%clk 0:01:50]} 20. Kh2 {[%clk 0:02:20]}  Qg4 {[%clk 0:01:45]} 21. Rg1 {[%clk 0:02:11]}  Bh6 {[%clk 0:01:40]} 22. Qe2 {[%clk 0:02:05]}  f3 {[%clk 0:01:23]} 23. Qf1 {[%clk 0:02:04]}  Qe6 {[%clk 0:01:11]} 24. Qh3 {[%clk 0:02:02]}  Qf7 {[%clk 0:01:11]} 25. Nd5 {[%clk 0:02:01]}  Kh7 {[%clk 0:01:08]} 26. g4 {[%clk 0:02:01]}  Bf4+ {[%clk 0:01:05]} 27. Kh1 {[%clk 0:02:00]}  hxg4 {[%clk 0:00:58]} 28. Rxg4 {[%clk 0:01:57]}  Rg8 {[%clk 0:00:55]} 29. Qxf3 {[%clk 0:01:55]}  Rbf8 {[%clk 0:00:48]} 30. Rdg1 {[%clk 0:01:52]}  Bc1 {[%clk 0:00:42]} 31. Qxf7+ {[%clk 0:01:43]}  Rxf7 {[%clk 0:00:36]} 32. Rxc1 {[%clk 0:01:43]} 1-0


[Site "https://www.chess.com"]

[Event "Titled Tuesday Blitz November 14 Late 2023"]
[White "Levine, David"]
[Black "Pourkashiyan, Atousa"]
[WhiteFideId "2011611"]
[BlackFideId "12502014"]
[WhiteElo "2123"]
[BlackElo "2531"]
[Result "0-1"]
[Round "1"]
[TimeControl "180+1"]
[Date "2023.11.14"]
[WhiteClock "0:00:44"]
[BlackClock "0:01:24"]
[Board "167"]

1. d4 {[%clk 0:02:59]}  Nf6 {[%clk 0:02:59]} 2. c4 {[%clk 0:02:59]}  e6 {[%clk 0:02:59]} 3. g3 {[%clk 0:02:59]}  d5 {[%clk 0:02:58]} 4. Bg2 {[%clk 0:02:59]}  dxc4 {[%clk 0:02:54]} 5. Nf3 {[%clk 0:02:58]}  Nbd7 {[%clk 0:02:53]} 6. Qc2 {[%clk 0:02:56]}  Nb6 {[%clk 0:02:51]} 7. Nbd2 {[%clk 0:02:54]}  Bb4 {[%clk 0:02:48]} 8. O-O {[%clk 0:02:53]}  Bxd2 {[%clk 0:02:49]} 9. Bxd2 {[%clk 0:02:51]}  O-O {[%clk 0:02:48]} 10. a4 {[%clk 0:02:46]}  a5 {[%clk 0:02:47]} 11. e4 {[%clk 0:02:44]}  Bd7 {[%clk 0:02:46]} 12. Bc3 {[%clk 0:02:40]}  Bc6 {[%clk 0:02:44]} 13. Rfe1 {[%clk 0:02:35]}  Qe8 {[%clk 0:02:29]} 14. e5 {[%clk 0:02:08]}  Nfd5 {[%clk 0:02:15]} 15. Ng5 {[%clk 0:02:08]}  g6 {[%clk 0:02:16]} 16. Qd2 {[%clk 0:01:57]}  Nxa4 {[%clk 0:02:05]} 17. Rxa4 {[%clk 0:01:42]}  Bxa4 {[%clk 0:01:56]} 18. Bxd5 {[%clk 0:01:40]}  exd5 {[%clk 0:01:55]} 19. e6 {[%clk 0:01:40]}  fxe6 {[%clk 0:01:41]} 20. Rxe6 {[%clk 0:01:36]}  Qd7 {[%clk 0:01:38]} 21. Re5 {[%clk 0:00:57]}  Rae8 {[%clk 0:01:33]} 22. f4 {[%clk 0:00:52]}  b6 {[%clk 0:01:28]} 23. Qg2 {[%clk 0:00:49]}  Bc6 {[%clk 0:01:26]} 24. Qh3 {[%clk 0:00:44]}  Qxh3 {[%clk 0:01:24]} 0-1


[Site "https://www.chess.com"]

[Event "Titled Tuesday Blitz November 14 Late 2023"]
[White "Womacka, Mathias"]
[Black "Fernandez Hernandez, Gerardo"]
[WhiteFideId "4611390"]
[BlackFideId "2207400"]
[WhiteElo "2531"]
[BlackElo "2119"]
[Result "1-0"]
[Round "1"]
[TimeControl "180+1"]
[Date "2023.11.14"]
[WhiteClock "0:00:31"]
[BlackClock "0:00:00"]
[Board "168"]

1. e4 {[%clk 0:02:59]}  e6 {[%clk 0:02:59]} 2. d4 {[%clk 0:02:58]}  d5 {[%clk 0:03:00]} 3. Nd2 {[%clk 0:02:58]}  Nc6 {[%clk 0:02:59]} 4. Ngf3 {[%clk 0:02:57]}  Nf6 {[%clk 0:02:58]} 5. e5 {[%clk 0:02:57]}  Nd7 {[%clk 0:02:58]} 6. Bd3 {[%clk 0:02:57]}  f6 {[%clk 0:02:57]} 7. exf6 {[%clk 0:02:55]}  Qxf6 {[%clk 0:02:57]} 8. Nf1 {[%clk 0:02:56]}  h6 {[%clk 0:02:40]} 9. Ne3 {[%clk 0:02:56]}  Bd6 {[%clk 0:02:37]} 10. O-O {[%clk 0:02:55]}  O-O {[%clk 0:02:37]} 11. Ng4 {[%clk 0:02:50]}  Qf7 {[%clk 0:02:35]} 12. Re1 {[%clk 0:02:25]}  Rd8 {[%clk 0:01:33]} 13. c3 {[%clk 0:02:19]}  Nf8 {[%clk 0:01:33]} 14. h3 {[%clk 0:02:11]}  Kh8 {[%clk 0:01:23]} 15. Bc2 {[%clk 0:01:55]}  Bd7 {[%clk 0:01:20]} 16. Qd3 {[%clk 0:01:54]}  Be8 {[%clk 0:01:14]} 17. Nfe5 {[%clk 0:01:42]}  Nxe5 {[%clk 0:01:11]} 18. Nxe5 {[%clk 0:01:40]}  Bxe5 {[%clk 0:00:55]} 19. Rxe5 {[%clk 0:01:41]}  c5 {[%clk 0:00:52]} 20. dxc5 {[%clk 0:01:36]}  Qf6 {[%clk 0:00:47]} 21. f4 {[%clk 0:01:27]}  Rac8 {[%clk 0:00:45]} 22. Be3 {[%clk 0:01:14]}  Bg6 {[%clk 0:00:45]} 23. Qd2 {[%clk 0:01:13]}  Bxc2 {[%clk 0:00:44]} 24. Qxc2 {[%clk 0:01:11]}  Ng6 {[%clk 0:00:45]} 25. Bd4 {[%clk 0:00:59]}  Nxe5 {[%clk 0:00:43]} 26. Bxe5 {[%clk 0:01:00]}  Qf5 {[%clk 0:00:43]} 27. Qf2 {[%clk 0:00:57]}  Kh7 {[%clk 0:00:31]} 28. Qd4 {[%clk 0:00:55]}  g6 {[%clk 0:00:26]} 29. Rf1 {[%clk 0:00:53]}  Qe4 {[%clk 0:00:25]} 30. Qf2 {[%clk 0:00:51]}  Rf8 {[%clk 0:00:20]} 31. Re1 {[%clk 0:00:49]}  Qf5 {[%clk 0:00:15]} 32. Qd4 {[%clk 0:00:49]}  Rf7 {[%clk 0:00:14]} 33. Re3 {[%clk 0:00:48]}  g5 {[%clk 0:00:13]} 34. fxg5 {[%clk 0:00:46]}  hxg5 {[%clk 0:00:11]} 35. Kh2 {[%clk 0:00:46]}  Rg8 {[%clk 0:00:10]} 36. Rg3 {[%clk 0:00:45]}  Kh6 {[%clk 0:00:06]} 37. Rg4 {[%clk 0:00:39]}  Qf2 {[%clk 0:00:04]} 38. b4 {[%clk 0:00:34]}  Qxd4 {[%clk 0:00:03]} 39. cxd4 {[%clk 0:00:35]}  a6 {[%clk 0:00:03]} 40. a4 {[%clk 0:00:34]}  Rf2 {[%clk 0:00:03]} 41. Rg3 {[%clk 0:00:33]}  Rc2 {[%clk 0:00:00]} 42. Rf3 {[%clk 0:00:31]} 1-0


[Site "https://www.chess.com"]

[Event "Titled Tuesday Blitz November 14 Late 2023"]
[White "Vafin, Ayrat"]
[Black "miraitrunks"]
[WhiteFideId "4146530"]
[WhiteElo "2528"]
[BlackElo "2077"]
[Result "1-0"]
[Round "1"]
[TimeControl "180+1"]
[Date "2023.11.14"]
[WhiteClock "0:02:29"]
[BlackClock "0:02:17"]
[Board "172"]

1. Nf3 {[%clk 0:03:00]}  c5 {[%clk 0:02:58]} 2. g3 {[%clk 0:03:00]}  Nc6 {[%clk 0:02:59]} 3. d4 {[%clk 0:03:00]}  cxd4 {[%clk 0:02:59]} 4. Nxd4 {[%clk 0:03:01]}  g6 {[%clk 0:02:59]} 5. Bg2 {[%clk 0:03:01]}  Bg7 {[%clk 0:02:59]} 6. Nxc6 {[%clk 0:03:01]}  bxc6 {[%clk 0:03:00]} 7. c4 {[%clk 0:03:00]}  Qb6 {[%clk 0:02:59]} 8. Qc2 {[%clk 0:02:51]}  Nf6 {[%clk 0:02:57]} 9. O-O {[%clk 0:02:49]}  O-O {[%clk 0:02:56]} 10. Be3 {[%clk 0:02:46]}  Qc7 {[%clk 0:02:51]} 11. Nc3 {[%clk 0:02:44]}  Rb8 {[%clk 0:02:47]} 12. Rad1 {[%clk 0:02:39]}  Rd8 {[%clk 0:02:46]} 13. Bf4 {[%clk 0:02:36]}  e5 {[%clk 0:02:43]} 14. Bg5 {[%clk 0:02:35]}  d6 {[%clk 0:02:33]} 15. Ne4 {[%clk 0:02:33]}  Bf5 {[%clk 0:02:21]} 16. Bxf6 {[%clk 0:02:32]}  Bxf6 {[%clk 0:02:21]} 17. Nxf6+ {[%clk 0:02:32]}  Kg7 {[%clk 0:02:21]} 18. Ne4 {[%clk 0:02:29]}  d5 {[%clk 0:02:17]} 19. cxd5 {[%clk 0:02:29]} 1-0


[Site "https://www.chess.com"]

[Event "Titled Tuesday Blitz November 14 Late 2023"]
[White "Erdogan, Anil Berk"]
[Black "Desideri, Ricardo Maruchi"]
[WhiteFideId "6348173"]
[BlackFideId "2110440"]
[WhiteElo "2520"]
[BlackElo "1984"]
[Result "1-0"]
[Round "1"]
[TimeControl "180+1"]
[Date "2023.11.14"]
[WhiteClock "0:00:06"]
[BlackClock "0:00:00"]
[Board "178"]

1. e4 {[%clk 0:03:00]}  Nc6 {[%clk 0:02:58]} 2. Nf3 {[%clk 0:03:00]}  g6 {[%clk 0:02:55]} 3. d4 {[%clk 0:02:59]}  Bg7 {[%clk 0:02:54]} 4. Bc4 {[%clk 0:02:57]}  e6 {[%clk 0:02:54]} 5. d5 {[%clk 0:02:56]}  Ne5 {[%clk 0:02:52]} 6. Nxe5 {[%clk 0:02:55]}  Bxe5 {[%clk 0:02:52]} 7. f4 {[%clk 0:02:51]}  Bg7 {[%clk 0:02:49]} 8. dxe6 {[%clk 0:02:51]}  fxe6 {[%clk 0:02:47]} 9. Nc3 {[%clk 0:02:44]}  Ne7 {[%clk 0:02:47]} 10. O-O {[%clk 0:02:39]}  O-O {[%clk 0:02:47]} 11. f5 {[%clk 0:02:36]}  gxf5 {[%clk 0:02:45]} 12. Bg5 {[%clk 0:02:35]}  h6 {[%clk 0:02:39]} 13. Bh4 {[%clk 0:02:28]}  Qe8 {[%clk 0:02:39]} 14. exf5 {[%clk 0:02:22]}  Nxf5 {[%clk 0:02:37]} 15. Bf2 {[%clk 0:02:20]}  b6 {[%clk 0:02:23]} 16. Bb5 {[%clk 0:02:09]}  Bb7 {[%clk 0:02:17]} 17. Qxd7 {[%clk 0:01:45]}  Qg6 {[%clk 0:02:15]} 18. Bc6 {[%clk 0:01:41]}  Rf7 {[%clk 0:02:09]} 19. Qxf7+ {[%clk 0:01:39]}  Kxf7 {[%clk 0:01:45]} 20. Bxb7 {[%clk 0:01:40]}  Rd8 {[%clk 0:01:43]} 21. Be4 {[%clk 0:01:24]}  Bxc3 {[%clk 0:01:34]} 22. bxc3 {[%clk 0:01:23]}  Kg8 {[%clk 0:01:22]} 23. Rad1 {[%clk 0:01:19]}  Rd6 {[%clk 0:01:14]} 24. Bg3 {[%clk 0:01:06]}  Rxd1 {[%clk 0:01:08]} 25. Rxd1 {[%clk 0:01:03]}  Qg4 {[%clk 0:01:02]} 26. Rd8+ {[%clk 0:00:52]}  Kf7 {[%clk 0:01:00]} 27. Rd7+ {[%clk 0:00:47]}  Kf6 {[%clk 0:00:42]} 28. Bxf5 {[%clk 0:00:35]}  Qxf5 {[%clk 0:00:39]} 29. Rd3 {[%clk 0:00:30]}  Qc5+ {[%clk 0:00:32]} 30. Bf2 {[%clk 0:00:30]}  Qc4 {[%clk 0:00:23]} 31. Bd4+ {[%clk 0:00:28]}  e5 {[%clk 0:00:19]} 32. Rf3+ {[%clk 0:00:29]}  Kg5 {[%clk 0:00:10]} 33. Bxe5 {[%clk 0:00:27]}  Qxa2 {[%clk 0:00:10]} 34. h4+ {[%clk 0:00:16]}  Kxh4 {[%clk 0:00:06]} 35. Rh3+ {[%clk 0:00:14]}  Kg4 {[%clk 0:00:05]} 36. Rg3+ {[%clk 0:00:14]}  Kf5 {[%clk 0:00:06]} 37. Bd4 {[%clk 0:00:14]}  Qb1+ {[%clk 0:00:05]} 38. Kh2 {[%clk 0:00:15]}  Qxc2 {[%clk 0:00:05]} 39. Rf3+ {[%clk 0:00:15]}  Ke4 {[%clk 0:00:04]} 40. Rf7 {[%clk 0:00:15]}  c5 {[%clk 0:00:02]} 41. Re7+ {[%clk 0:00:16]}  Kd3 {[%clk 0:00:02]} 42. Bg7 {[%clk 0:00:16]}  Kc4 {[%clk 0:00:02]} 43. Bxh6 {[%clk 0:00:15]}  Qg6 {[%clk 0:00:01]} 44. Bf4 {[%clk 0:00:09]}  Qf5 {[%clk 0:00:00]} 45. Bg3 {[%clk 0:00:06]} 1-0


[Site "https://www.chess.com"]

[Event "Titled Tuesday Blitz November 14 Late 2023"]
[White "subham777"]
[Black "Gyulamiryan-koryun"]
[WhiteElo "2518"]
[BlackElo "1875"]
[Result "1-0"]
[Round "1"]
[TimeControl "180+1"]
[Date "2023.11.14"]
[WhiteClock "0:00:16"]
[BlackClock "0:00:17"]
[Board "180"]

1. e4 {[%clk 0:02:59]}  e5 {[%clk 0:02:58]} 2. Nf3 {[%clk 0:02:58]}  Nc6 {[%clk 0:02:57]} 3. Bc4 {[%clk 0:02:57]}  f5 {[%clk 0:02:57]} 4. d3 {[%clk 0:02:50]}  Nf6 {[%clk 0:02:53]} 5. Nc3 {[%clk 0:02:47]}  Bb4 {[%clk 0:02:48]} 6. O-O {[%clk 0:02:45]}  Bxc3 {[%clk 0:02:47]} 7. bxc3 {[%clk 0:02:44]}  d5 {[%clk 0:02:47]} 8. exd5 {[%clk 0:02:43]}  Nxd5 {[%clk 0:02:47]} 9. Re1 {[%clk 0:02:43]}  Qd6 {[%clk 0:02:37]} 10. Nxe5 {[%clk 0:02:40]}  Nxe5 {[%clk 0:02:34]} 11. d4 {[%clk 0:02:40]}  Nxc3 {[%clk 0:02:27]} 12. Qh5+ {[%clk 0:02:12]}  g6 {[%clk 0:02:27]} 13. dxe5 {[%clk 0:01:43]}  Qc6 {[%clk 0:02:00]} 14. Qh4 {[%clk 0:01:27]}  Ne4 {[%clk 0:01:59]} 15. Bd3 {[%clk 0:01:23]}  Nc5 {[%clk 0:01:48]} 16. Ba3 {[%clk 0:01:17]}  Be6 {[%clk 0:01:44]} 17. Rab1 {[%clk 0:01:13]}  O-O {[%clk 0:01:28]} 18. Bb5 {[%clk 0:01:03]}  Qd5 {[%clk 0:01:17]} 19. Rbd1 {[%clk 0:00:54]}  Qxa2 {[%clk 0:01:13]} 20. Bxc5 {[%clk 0:00:52]}  c6 {[%clk 0:00:53]} 21. Rd7 {[%clk 0:00:31]}  Bxd7 {[%clk 0:00:35]} 22. Bc4+ {[%clk 0:00:27]}  Be6 {[%clk 0:00:34]} 23. Bxa2 {[%clk 0:00:26]}  Bxa2 {[%clk 0:00:34]} 24. Bxf8 {[%clk 0:00:27]}  Rxf8 {[%clk 0:00:33]} 25. e6 {[%clk 0:00:27]}  Re8 {[%clk 0:00:31]} 26. Qf6 {[%clk 0:00:27]}  Bd5 {[%clk 0:00:25]} 27. Qf7+ {[%clk 0:00:18]}  Kh8 {[%clk 0:00:23]} 28. Qxe8+ {[%clk 0:00:16]}  Kg7 {[%clk 0:00:23]} 29. e7 {[%clk 0:00:16]}  Bf7 {[%clk 0:00:20]} 30. Qf8+ {[%clk 0:00:17]}  Kf6 {[%clk 0:00:19]} 31. e8=Q {[%clk 0:00:15]}  b5 {[%clk 0:00:17]} 32. Qee7# {[%clk 0:00:16]} 1-0


[Site "https://www.chess.com"]

[Event "Titled Tuesday Blitz November 14 Late 2023"]
[White "Vargas, Mauricio"]
[Black "Meduri, Aakaash"]
[WhiteFideId "4404572"]
[BlackFideId "2032252"]
[WhiteElo "1852"]
[BlackElo "2517"]
[Result "0-1"]
[Round "1"]
[TimeControl "180+1"]
[Date "2023.11.14"]
[WhiteClock "0:00:00"]
[BlackClock "0:00:30"]
[Board "181"]

1. e4 {[%clk 0:02:54]}  d5 {[%clk 0:02:58]} 2. e5 {[%clk 0:02:53]}  c5 {[%clk 0:02:58]} 3. f4 {[%clk 0:02:53]}  g6 {[%clk 0:02:58]} 4. Nf3 {[%clk 0:02:53]}  Nc6 {[%clk 0:02:57]} 5. Bb5 {[%clk 0:02:53]}  Bg7 {[%clk 0:02:57]} 6. Bxc6+ {[%clk 0:02:54]}  bxc6 {[%clk 0:02:57]} 7. O-O {[%clk 0:02:55]}  Nh6 {[%clk 0:02:56]} 8. d3 {[%clk 0:02:56]}  O-O {[%clk 0:02:55]} 9. Nc3 {[%clk 0:02:53]}  Rb8 {[%clk 0:02:55]} 10. b3 {[%clk 0:02:51]}  Ba6 {[%clk 0:02:48]} 11. Na4 {[%clk 0:02:50]}  Qa5 {[%clk 0:02:41]} 12. c4 {[%clk 0:02:47]}  Rfd8 {[%clk 0:02:37]} 13. Qe1 {[%clk 0:02:44]}  Qc7 {[%clk 0:02:31]} 14. Ba3 {[%clk 0:02:38]}  Nf5 {[%clk 0:02:26]} 15. Bxc5 {[%clk 0:02:18]}  e6 {[%clk 0:02:20]} 16. g4 {[%clk 0:02:15]}  Nh6 {[%clk 0:02:20]} 17. Qh4 {[%clk 0:02:13]}  dxc4 {[%clk 0:02:16]} 18. dxc4 {[%clk 0:02:12]}  Rd3 {[%clk 0:02:14]} 19. Bd6 {[%clk 0:02:07]}  Rxd6 {[%clk 0:02:11]} 20. exd6 {[%clk 0:02:08]}  Qxd6 {[%clk 0:02:11]} 21. Rad1 {[%clk 0:02:06]}  Qxf4 {[%clk 0:02:07]} 22. Ng5 {[%clk 0:01:55]}  Qe3+ {[%clk 0:02:05]} 23. Kg2 {[%clk 0:01:48]}  c5 {[%clk 0:02:05]} 24. Rd7 {[%clk 0:01:39]}  Bb7+ {[%clk 0:02:01]} 25. Rxb7 {[%clk 0:01:38]}  Rxb7 {[%clk 0:02:01]} 26. Nf3 {[%clk 0:01:30]}  Rd7 {[%clk 0:01:56]} 27. Qg3 {[%clk 0:01:21]}  Qe4 {[%clk 0:01:45]} 28. h3 {[%clk 0:01:14]}  Rd8 {[%clk 0:01:38]} 29. Nxc5 {[%clk 0:01:03]}  Qe3 {[%clk 0:01:23]} 30. Nb7 {[%clk 0:00:54]}  Rf8 {[%clk 0:01:20]} 31. Nd6 {[%clk 0:00:44]}  Bc3 {[%clk 0:01:09]} 32. Nb5 {[%clk 0:00:41]}  Bb2 {[%clk 0:01:06]} 33. Rf2 {[%clk 0:00:35]}  Ba1 {[%clk 0:01:04]} 34. Nxa7 {[%clk 0:00:33]}  Qxa7 {[%clk 0:01:02]} 35. Qf4 {[%clk 0:00:19]}  Kg7 {[%clk 0:00:58]} 36. Qg5 {[%clk 0:00:15]}  Ng8 {[%clk 0:00:56]} 37. h4 {[%clk 0:00:10]}  h6 {[%clk 0:00:39]} 38. Qf4 {[%clk 0:00:07]}  Kh7 {[%clk 0:00:30]} 39. g5 {[%clk 0:00:00]}  h5 {[%clk 0:00:30]} 0-1


[Site "https://www.chess.com"]